[Event "2nd Namma Bengaluru Open-B 2025"]
[Site "Bengaluru"]
[Date "2025.04.13"]
[Round "9.1"]
[White "Aditya Dileepraj"]
[Black "Nijesh R"]
[Result "1/2-1/2"]
[Annotator "NA"]
[ECO "D38"]
[WhiteElo "1746"]
[BlackElo "1813"]
[PlyCount "90"]
[EventDate "2025.04.10"]
[EventType "swiss"]
[EventCountry "IND"]
[SourceTitle "playchess.com"]
[Source "ChessBase"]
[SourceQuality "1"]
[TimeControl "3600+30"]

1. d4 {[%emt 0:00:12]} Nf6 {[%emt 0:00:23]} 2. c4 {[%emt 0:00:13]} e6 {[%emt 0:00:19]} 3. Nf3 {[%emt 0:00:06]} d5 {[%emt 0:00:06]} 4. Nc3 {[%emt 0:00:06]} Bb4 {[%emt 0:00:06]} 5. Qa4+ {[%emt 0:00:11]} Nc6 {[%emt 0:00:18]} 6. e3 {[%emt 0:00:10]} O-O {[%emt 0:03:25]} 7. Qc2 {[%emt 0:00:16]} dxc4 {[%emt 0:01:48]} 8. Bxc4 {[%emt 0:00:31]} h6 {[%emt 0:12:30]} 9. O-O {[%emt 0:01:18]} Re8 {[%emt 0:02:36]} 10. a3 {[%emt 0:01:03]} Bd6 {[%emt 0:02:27]} 11. e4 {[%emt 0:04:18]} e5 {[%emt 0:01:06]} 12. d5 {[%emt 0:00:56]} Nd4 {[%emt 0:00:58]} 13. Qd3 {[%emt 0:01:12]} Nxf3+ {[%emt 0:09:37]} 14. Qxf3 {[%emt 0:00:15]} Nh7 {[%emt 0:04:20]} 15. Be3 {[%emt 0:05:39]} Ng5 {[%emt 0:02:04]} 16. Qh5 {[%emt 0:03:24]} Qf6 {[%emt 0:09:45]} 17. Rae1 {[%emt 0:05:23]} Bd7 {[%emt 0:02:19]} 18. h4 {[%emt 0:01:31]} Nh7 {[%emt 0:00:42]} 19. Bb5 {[%emt 0:01:21]} g6 {[%emt 0:01:58]} 20. Qe2 {[%emt 0:01:34]} Bxb5 {[%emt 0:00:28]} 21. Qxb5 {[%emt 0:00:29]} Qxh4 {[%emt 0:00:22]} 22. Bxa7 {[%emt 0:02:20]} Nf6 {[%emt 0:00:19]} 23. Re3 {[%emt 0:01:36]} Rxa7 {[%emt 0:05:53]} 24. Rh3 {[%emt 0:02:12]} Qg4 {[%emt 0:02:10]} 25. Rf3 {[%emt 0:01:06]} Nd7 {[%emt 0:00:37]} 26. Rg3 {[%emt 0:00:09]} c6 {[%emt 0:01:18]} 27. dxc6 {[%emt 0:00:03]} bxc6 {[%emt 0:00:07]} 28. Qxc6 {[%emt 0:00:38]} Qe6 {[%emt 0:00:15]} 29. Nb5 {[%emt 0:00:01]} Bc5 {[%emt 0:05:11]} 30. Nxa7 {[%emt 0:01:00]} Bxa7 {[%emt 0:00:06]} 31. Qxe6 {[%emt 0:00:05]} Rxe6 {[%emt 0:00:08]} 32. b4 {[%emt 0:01:14]} Nf6 {[%emt 0:01:16]} 33. Re1 {[%emt 0:01:42]} Rd6 {[%emt 0:00:34]} 34. Kf1 {[%emt 0:01:26]} Kf8 {[%emt 0:01:07]} 35. Rc3 {[%emt 0:00:28]} Rd2 {[%emt 0:00:46]} 36. Re2 {[%emt 0:00:23]} Rd1+ {[%emt 0:00:25]} 37. Re1 {[%emt 0:00:04]} Rd2 {[%emt 0:00:33]} 38. Re2 {[%emt 0:00:11]} Rd7 {[%emt 0:00:21]} 39. g3 {[%emt 0:00:30]} Rd1+ {[%emt 0:00:20]} 40. Kg2 {[%emt 0:00:16]} Bd4 {[%emt 0:00:28]} 41. Rcc2 {[%emt 0:01:03]} Rd3 {[%emt 0:00:34]} 42. a4 {[%emt 0:00:37]} Rb3 {[%emt 0:00:16]} 43. b5 {[%emt 0:00:29]} Rb4 {[%emt 0:00:10]} 44. Ra2 {[%emt 0:00:08]} Ke7 {[%emt 0:00:50]} 45. f3 {[%emt 0:01:54]} Nd7 {[%emt 0:01:04]} 1/2-1/2

[Event "2nd Namma Bengaluru Open-B 2025"]
[Site "Bengaluru"]
[Date "2025.04.13"]
[Round "9.2"]
[White "Afreed T Khan"]
[Black "Vivaan Sachdev"]
[Result "1-0"]
[Annotator "ChessBase"]
[ECO "D80"]
[WhiteElo "1921"]
[BlackElo "1782"]
[PlyCount "71"]
[EventDate "2025.04.10"]
[EventType "swiss"]
[EventCountry "IND"]
[SourceTitle "playchess.com"]
[Source "ChessBase"]
[SourceQuality "1"]
[TimeControl "3600+30"]

1. d4 {[%emt 0:00:22]} Nf6 {[%emt 0:00:16]} 2. c4 {[%emt 0:00:06]} g6 {[%emt 0:00:03]} 3. Nc3 {[%emt 0:00:06]} d5 {[%emt 0:00:03]} 4. Nf3 {[%emt 0:00:05]} Bg7 {[%emt 0:00:07]} 5. Bg5 {[%emt 0:00:05]} Ne4 {[%emt 0:00:07]} 6. Bf4 {[%emt 0:00:05]} Nxc3 {[%emt 0:01:47]} 7. bxc3 {[%emt 0:00:03]} c5 {[%emt 0:00:10]} 8. cxd5 {[%emt 0:00:29]} Qxd5 {[%emt 0:06:27]} 9. e3 {[%emt 0:00:11]} cxd4 {[%emt 0:00:51]} 10. cxd4 {[%emt 0:00:08]} Nc6 {[%emt 0:01:21]} 11. Be2 {[%emt 0:04:19]} O-O {[%emt 0:01:36]} 12. O-O {[%emt 0:00:06]} Bf5 {[%emt 0:04:07]} 13. Qa4 {[%emt 0:02:00]} Rac8 {[%emt 0:08:21]} 14. Rac1 {[%emt 0:14:40]} Qa5 {[%emt 0:03:42]} 15. Qxa5 {[%emt 0:15:30]} Nxa5 {[%emt 0:00:42]} 16. Nd2 {[%emt 0:00:17]} Bd7 {[%emt 0:08:07]} 17. h4 {[%emt 0:11:04]} h5 {[%emt 0:03:59]} 18. Bd3 {[%emt 0:01:01]} Rfe8 {[%emt 0:04:34]} 19. Ne4 {[%emt 0:07:13]} Bc6 {[%emt 0:05:38]} 20. Bg3 {[%emt 0:01:39]} Red8 {[%emt 0:05:53]} 21. f4 {[%emt 0:02:54]} Bd5 {[%emt 0:03:28]} 22. f5 {[%emt 0:06:04]} Bxe4 {[%emt 0:02:31]} 23. Bxe4 {[%emt 0:00:24]} Bh6 {[%emt 0:00:05]} 24. Rxc8 {[%emt 0:01:00]} Bxe3+ {[%emt 0:01:50]} 25. Kh2 {[%emt 0:00:03]} Rxc8 {[%emt 0:00:05]} 26. fxg6 {[%emt 0:00:06]} f6 {[%emt 0:01:51]} 27. Rf5 {[%emt 0:01:07]} Nc6 {[%emt 0:02:43]} 28. Rxh5 {[%emt 0:00:31]} Nxd4 {[%emt 0:01:03]} 29. Rh7 {[%emt 0:00:05]} e6 {[%emt 0:01:21]} 30. Rxb7 {[%emt 0:02:03]} Rc1 {[%emt 0:01:11]} 31. Bd6 {[%emt 0:01:22]} Bg1+ {[%emt 0:00:18]} 32. Kh3 {[%emt 0:00:14]} Rc3+ {[%emt 0:01:11]} 33. g3 {[%emt 0:00:03]} Re3 {[%emt 0:00:06]} 34. Rb8+ {[%emt 0:00:10]} Kg7 {[%emt 0:00:07]} 35. Bf8+ {[%emt 0:00:04]} Kg8 {[%emt 0:00:19]} 36. Bh6# {[%emt 0:00:03]} 1-0

[Event "2nd Namma Bengaluru Open-B 2025"]
[Site "Bengaluru"]
[Date "2025.04.13"]
[Round "9.3"]
[White "Gaigore Sanskar"]
[Black "Rohith P"]
[Result "0-1"]
[Annotator "NA"]
[ECO "B30"]
[WhiteElo "1752"]
[BlackElo "1808"]
[PlyCount "116"]
[EventDate "2025.04.10"]
[EventType "swiss"]
[EventCountry "IND"]
[SourceTitle "playchess.com"]
[Source "ChessBase"]
[SourceQuality "1"]
[TimeControl "3600+30"]

1. Nf3 {[%emt 0:00:04]} Nf6 {[%emt 0:00:06]} 2. g3 {[%emt 0:00:10]} c5 {[%emt 0:00:03]} 3. Bg2 {[%emt 0:00:26]} Nc6 {[%emt 0:00:05]} 4. d3 {[%emt 0:00:07]} e5 {[%emt 0:00:03]} 5. O-O {[%emt 0:00:06]} Be7 {[%emt 0:00:07]} 6. e4 {[%emt 0:01:50]} O-O {[%emt 0:01:36]} 7. Re1 {[%emt 0:00:41]} d6 {[%emt 0:00:05]} 8. c3 {[%emt 0:00:24]} b5 {[%emt 0:00:53]} 9. h3 {[%emt 0:00:27]} Bb7 {[%emt 0:04:33]} 10. Bg5 {[%emt 0:02:17]} h6 {[%emt 0:01:22]} 11. Bxf6 {[%emt 0:00:42]} Bxf6 {[%emt 0:00:01]} 12. a4 {[%emt 0:00:17]} b4 {[%emt 0:00:18]} 13. Nbd2 {[%emt 0:00:28]} bxc3 {[%emt 0:04:56]} 14. bxc3 {[%emt 0:00:21]} Ba6 {[%emt 0:00:38]} 15. Nf1 {[%emt 0:01:11]} Qa5 {[%emt 0:00:08]} 16. Qc2 {[%emt 0:01:05]} c4 {[%emt 0:02:03]} 17. dxc4 {[%emt 0:02:00]} Bxc4 {[%emt 0:00:05]} 18. Ne3 {[%emt 0:00:08]} Be6 {[%emt 0:00:01]} 19. Nd5 {[%emt 0:04:20]} Bxd5 {[%emt 0:03:25]} 20. exd5 {[%emt 0:03:17]} Nd8 {[%emt 0:01:01]} 21. Nd2 {[%emt 0:02:45]} Rc8 {[%emt 0:00:08]} 22. Ne4 {[%emt 0:00:18]} Be7 {[%emt 0:00:01]} 23. c4 {[%emt 0:01:51]} f5 {[%emt 0:02:32]} 24. Nd2 {[%emt 0:02:12]} Nb7 {[%emt 0:00:01]} 25. Reb1 {[%emt 0:02:33]} Qc7 {[%emt 0:03:41]} 26. a5 {[%emt 0:08:06]} Nc5 {[%emt 0:04:34]} 27. Nb3 {[%emt 0:09:16]} Nxb3 {[%emt 0:00:11]} 28. Rxb3 {[%emt 0:00:12]} e4 {[%emt 0:00:08]} 29. Ra4 {[%emt 0:01:47]} Rb8 {[%emt 0:01:30]} 30. a6 {[%emt 0:04:03]} Rb6 {[%emt 0:03:30]} 31. Qb1 {[%emt 0:04:28]} Rfb8 {[%emt 0:03:32]} 32. Rab4 {[%emt 0:00:24]} Bd8 {[%emt 0:00:06]} 33. g4 {[%emt 0:01:34]} Qc5 {[%emt 0:01:49]} 34. Rxb6 {[%emt 0:02:39]} Bxb6 {[%emt 0:00:33]} 35. gxf5 {[%emt 0:02:01]} Qxf2+ {[%emt 0:00:05]} 36. Kh1 {[%emt 0:00:03]} e3 {[%emt 0:00:35]} 37. Qf1 {[%emt 0:14:27]} Qc2 {[%emt 0:02:22]} 38. Rb1 {[%emt 0:00:00]} e2 {[%emt 0:00:11]} 39. Qe1 {[%emt 0:00:00]} Qxb1 {[%emt 0:00:52]} 40. Qxb1 {[%emt 0:00:00]} Re8 {[%emt 0:00:03]} 41. Qe1 {[%emt 0:00:00]} Ba5 {[%emt 0:00:11]} 42. Qxa5 {[%emt 0:00:00]} e1=Q+ {[%emt 0:33:26]} 43. Qxe1 {[%emt 0:00:00]} Rxe1+ {[%emt 0:00:00]} 44. Kh2 {[%emt 0:00:00]} Ra1 {[%emt 0:00:00]} 45. Kg3 {[%emt 0:00:00]} Rxa6 {[%emt 0:00:00]} 46. Kf4 {[%emt 0:00:00]} Ra5 {[%emt 0:00:00]} 47. Ke4 {[%emt 0:00:00]} Rc5 {[%emt 0:00:00]} 48. Kd4 {[%emt 0:00:00]} Kf8 {[%emt 0:00:00]} 49. Be4 {[%emt 0:00:00]} Ke7 {[%emt 0:00:00]} 50. Bc2 {[%emt 0:00:00]} Kf6 {[%emt 0:00:00]} 51. h4 {[%emt 0:00:00]} Ra5 {[%emt 0:00:00]} 52. Bd3 {[%emt 0:00:00]} a6 {[%emt 0:00:00]} 53. Bc2 {[%emt 0:00:00]} Ra2 {[%emt 0:00:00]} 54. Bd3 {[%emt 0:00:00]} Rh2 {[%emt 0:00:00]} 55. c5 {[%emt 0:00:00]} Rxh4+ {[%emt 0:00:00]} 56. Kc3 {[%emt 0:00:00]} dxc5 {[%emt 0:00:00]} 57. Bxa6 {[%emt 0:00:00]} Kxf5 {[%emt 0:00:00]} 58. d6 {[%emt 0:00:00]} Ke6 {[%emt 0:00:00]} 0-1

[Event "2nd Namma Bengaluru Open-B 2025"]
[Site "Bengaluru"]
[Date "2025.04.13"]
[Round "9.4"]
[White "Anurag, Jaiswal"]
[Black "Borse Vaibhav"]
[Result "1/2-1/2"]
[Annotator "ChessBase"]
[ECO "A37"]
[WhiteElo "1923"]
[BlackElo "1778"]
[PlyCount "63"]
[EventDate "2025.04.10"]
[EventType "swiss"]
[EventCountry "IND"]
[SourceTitle "playchess.com"]
[Source "ChessBase"]
[SourceQuality "1"]
[TimeControl "3600+30"]

1. Nf3 {[%emt 0:00:10]} c5 {[%emt 0:01:00]} 2. g3 {[%emt 0:00:22]} g6 {[%emt 0:00:05]} 3. Bg2 {[%emt 0:00:07]} Bg7 {[%emt 0:00:18]} 4. c4 {[%emt 0:00:07]} Nc6 {[%emt 0:00:14]} 5. Nc3 {[%emt 0:00:09]} d6 {[%emt 0:00:36]} 6. O-O {[%emt 0:00:08]} e5 {[%emt 0:00:05]} 7. d3 {[%emt 0:00:13]} Nge7 {[%emt 0:00:06]} 8. Ne1 {[%emt 0:00:49]} Be6 {[%emt 0:00:10]} 9. Nd5 {[%emt 0:00:26]} O-O {[%emt 0:03:00]} 10. Nc2 {[%emt 0:00:12]} Bxd5 {[%emt 0:00:30]} 11. cxd5 {[%emt 0:00:20]} Nd4 {[%emt 0:01:28]} 12. Nxd4 {[%emt 0:01:59]} cxd4 {[%emt 0:02:18]} 13. Qb3 {[%emt 0:01:34]} Qb6 {[%emt 0:00:27]} 14. Bd2 {[%emt 0:02:30]} Rac8 {[%emt 0:07:01]} 15. Rfc1 {[%emt 0:01:28]} Rxc1+ {[%emt 0:00:44]} 16. Rxc1 {[%emt 0:00:03]} Qxb3 {[%emt 0:00:25]} 17. axb3 {[%emt 0:00:01]} Rc8 {[%emt 0:00:09]} 18. Rc4 {[%emt 0:01:10]} b5 {[%emt 0:04:21]} 19. Rxc8+ {[%emt 0:00:07]} Nxc8 {[%emt 0:00:04]} 20. e4 {[%emt 0:00:22]} dxe3 {[%emt 0:03:25]} 21. fxe3 {[%emt 0:00:39]} e4 {[%emt 0:02:34]} 22. dxe4 {[%emt 0:00:17]} Bxb2 {[%emt 0:00:18]} 23. Bh3 {[%emt 0:00:03]} Nb6 {[%emt 0:03:12]} 24. Bb4 {[%emt 0:00:13]} Be5 {[%emt 0:00:57]} 25. Bf1 {[%emt 0:00:13]} Nd7 {[%emt 0:06:14]} 26. Bxb5 {[%emt 0:00:12]} Nc5 {[%emt 0:00:05]} 27. Bc4 {[%emt 0:03:17]} Nxe4 {[%emt 0:00:40]} 28. Kg2 {[%emt 0:00:58]} f5 {[%emt 0:01:52]} 29. Kf3 {[%emt 0:00:52]} Kf7 {[%emt 0:03:41]} 30. Ke2 {[%emt 0:00:46]} Kf6 {[%emt 0:00:26]} 31. Ba5 {[%emt 0:00:29]} Bb2 {[%emt 0:03:09]} 32. Bc7 {[%emt 0:56:14]} 1/2-1/2

[Event "2nd Namma Bengaluru Open-B 2025"]
[Site "Bengaluru"]
[Date "2025.04.13"]
[Round "9.5"]
[White "Prajit Ravishankar"]
[Black "Nayak, Biswajit"]
[Result "0-1"]
[Annotator "ChessBase"]
[ECO "E17"]
[WhiteElo "1818"]
[BlackElo "1979"]
[PlyCount "46"]
[EventDate "2025.04.10"]
[EventType "swiss"]
[EventCountry "IND"]
[SourceTitle "playchess.com"]
[Source "ChessBase"]
[SourceQuality "1"]
[TimeControl "3600+30"]

1. c4 {[%emt 0:00:03]} e6 {[%emt 0:00:44]} 2. g3 {[%emt 0:00:04]} Nf6 {[%emt 0:00:07]} 3. Bg2 {[%emt 0:00:50]} d5 {[%emt 0:00:26]} 4. d4 {[%emt 0:00:55]} Be7 {[%emt 0:03:52]} 5. Nf3 {[%emt 0:00:56]} O-O {[%emt 0:00:09]} 6. O-O {[%emt 0:00:16]} b6 {[%emt 0:01:10]} 7. Qc2 {[%emt 0:04:25]} Bb7 {[%emt 0:00:59]} 8. Rd1 {[%emt 0:00:12]} Nbd7 {[%emt 0:04:49]} 9. b3 {[%emt 0:00:14]} Rc8 {[%emt 0:00:49]} 10. Nc3 {[%emt 0:16:42]} c5 {[%emt 0:07:43]} 11. dxc5 {[%emt 0:08:37]} Bxc5 {[%emt 0:06:47]} 12. Bg5 {[%emt 0:07:02]} h6 {[%emt 0:04:19]} 13. Bxf6 {[%emt 0:00:44]} Qxf6 {[%emt 0:01:36]} 14. Na4 {[%emt 0:01:23]} Ba3 {[%emt 0:06:03]} 15. Nd4 {[%emt 0:02:58]} Ba6 {[%emt 0:06:52]} 16. Qd2 {[%emt 0:03:13]} dxc4 {[%emt 0:01:31]} 17. Nc2 {[%emt 0:01:53]} Bc5 {[%emt 0:06:35]} 18. Qxd7 {[%emt 0:01:38]} Bxf2+ {[%emt 0:00:58]} 19. Kh1 {[%emt 0:00:12]} cxb3 {[%emt 0:00:53]} 20. Nb4 {[%emt 0:05:55]} Bxe2 {[%emt 0:00:50]} 21. Nc6 {[%emt 0:01:37]} Bxd1 {[%emt 0:07:00]} 22. Qxd1 {[%emt 0:00:11]} Rxc6 {[%emt 0:00:49]} 23. Bxc6 {[%emt 0:01:19]} Bd4 {[%emt 0:00:08]} 0-1

[Event "2nd Namma Bengaluru Open-B 2025"]
[Site "Bengaluru"]
[Date "2025.04.13"]
[Round "9.6"]
[White "Karthikeyan, J.."]
[Black "Karyasheel P"]
[Result "1/2-1/2"]
[Annotator "ChessBase"]
[ECO "B31"]
[WhiteElo "1916"]
[BlackElo "1808"]
[PlyCount "112"]
[EventDate "2025.04.10"]
[EventType "swiss"]
[EventCountry "IND"]
[SourceTitle "playchess.com"]
[Source "ChessBase"]
[SourceQuality "1"]
[TimeControl "3600+30"]

1. e4 {[%emt 0:00:03]} c5 {[%emt 0:00:32]} 2. Nf3 {[%emt 0:00:26]} Nc6 {[%emt 0:00:06]} 3. Bb5 {[%emt 0:00:12]} g6 {[%emt 0:00:06]} 4. O-O {[%emt 0:00:33]} Bg7 {[%emt 0:00:05]} 5. Re1 {[%emt 0:01:08]} e5 {[%emt 0:00:14]} 6. Nc3 {[%emt 0:01:04]} Nge7 {[%emt 0:04:47]} 7. a4 {[%emt 0:00:40]} O-O {[%emt 0:01:24]} 8. Bc4 {[%emt 0:00:31]} h6 {[%emt 0:02:24]} 9. d3 {[%emt 0:00:11]} d6 {[%emt 0:00:08]} 10. h3 {[%emt 0:00:14]} Kh7 {[%emt 0:00:48]} 11. Nd5 {[%emt 0:10:50]} Nxd5 {[%emt 0:08:23]} 12. Bxd5 {[%emt 0:02:24]} Ne7 {[%emt 0:47:33]} 13. Ba2 {[%emt 0:01:07]} f5 {[%emt 0:00:00]} 14. c3 {[%emt 0:00:40]} Bd7 {[%emt 0:00:00]} 15. b4 {[%emt 0:06:20]} cxb4 {[%emt 0:00:00]} 16. cxb4 {[%emt 0:00:08]} d5 {[%emt 0:00:00]} 17. Bb2 {[%emt 0:00:40]} d4 {[%emt 0:00:00]} 18. exf5 {[%emt 0:00:43]} Rxf5 {[%emt 0:00:00]} 19. b5 {[%emt 0:00:14]} Qf8 {[%emt 0:00:00]} 20. Ba3 {[%emt 0:00:08]} Re8 {[%emt 0:00:00]} 21. Bd5 {[%emt 0:00:21]} Bc8 {[%emt 0:00:00]} 22. Rc1 {[%emt 0:00:08]} Qf6 {[%emt 0:00:00]} 23. Bxe7 {[%emt 0:01:07]} Qxe7 {[%emt 0:00:00]} 24. Nxd4 {[%emt 0:00:12]} Rxf2 {[%emt 0:00:00]} 25. Kxf2 {[%emt 0:00:56]} Qh4+ {[%emt 0:00:00]} 26. Ke2 {[%emt 0:02:16]} exd4+ {[%emt 0:00:00]} 27. Kf1 {[%emt 0:00:17]} Rf8+ {[%emt 0:00:00]} 28. Kg1 {[%emt 0:01:43]} Bxh3 {[%emt 0:00:00]} 29. Rf1 {[%emt 0:00:18]} Bg4 {[%emt 0:00:00]} 30. Qe1 {[%emt 0:00:29]} Rxf1+ {[%emt 0:00:00]} 31. Qxf1 {[%emt 0:00:06]} Qg3 {[%emt 0:00:00]} 32. Re1 {[%emt 0:06:23]} Bf5 {[%emt 0:03:19]} 33. Qe2 {[%emt 0:03:38]} Bxd3 {[%emt 0:03:30]} 34. Qe8 {[%emt 0:00:45]} h5 {[%emt 0:00:25]} 35. Re7 {[%emt 0:01:02]} Kh6 {[%emt 0:00:30]} 36. Bxb7 {[%emt 0:10:05]} Bf5 {[%emt 0:01:59]} 37. Bf3 {[%emt 0:04:40]} d3 {[%emt 0:00:17]} 38. Rxg7 {[%emt 0:00:31]} Kxg7 {[%emt 0:00:04]} 39. Qe7+ {[%emt 0:00:14]} Kh6 {[%emt 0:00:39]} 40. Qe3+ {[%emt 0:00:05]} g5 {[%emt 0:02:02]} 41. a5 {[%emt 0:01:23]} Qd6 {[%emt 0:00:49]} 42. Qxa7 {[%emt 0:00:58]} d2 {[%emt 0:00:47]} 43. Qb6 {[%emt 0:00:29]} Qxb6+ {[%emt 0:00:22]} 44. axb6 {[%emt 0:00:07]} Be4 {[%emt 0:00:02]} 45. Bd1 {[%emt 0:00:26]} h4 {[%emt 0:00:24]} 46. Kf2 {[%emt 0:00:06]} Kg7 {[%emt 0:00:08]} 47. Bg4 {[%emt 0:00:52]} Bf5 {[%emt 0:00:44]} 48. Bd1 {[%emt 0:06:15]} Be4 {[%emt 0:00:10]} 49. g3 {[%emt 0:03:36]} hxg3+ {[%emt 0:00:20]} 50. Kxg3 {[%emt 0:00:05]} Kf6 {[%emt 0:00:03]} 51. Kf2 {[%emt 0:00:05]} Ke5 {[%emt 0:01:01]} 52. Ke3 {[%emt 0:00:05]} Bb7 {[%emt 0:00:36]} 53. Kxd2 {[%emt 0:00:55]} Kd4 {[%emt 0:00:06]} 54. Bg4 {[%emt 0:01:38]} Kc5 {[%emt 0:00:07]} 55. Bd7 {[%emt 0:00:19]} Kxb6 {[%emt 0:00:05]} 56. Ke3 {[%emt 0:00:29]} Ba6 {[%emt 0:00:05]} 1/2-1/2

[Event "2nd Namma Bengaluru Open-B 2025"]
[Site "Bengaluru"]
[Date "2025.04.13"]
[Round "9.7"]
[White "Nihaan Pohane"]
[Black "Swapnil Priyadarshi"]
[Result "1-0"]
[Annotator "NA"]
[ECO "D00"]
[WhiteElo "1882"]
[BlackElo "1814"]
[PlyCount "97"]
[EventDate "2025.04.10"]
[EventType "swiss"]
[EventCountry "IND"]
[SourceTitle "playchess.com"]
[Source "ChessBase"]
[SourceQuality "1"]
[TimeControl "3600+30"]

1. d4 {[%emt 0:00:04]} d5 {[%emt 0:00:07]} 2. Bf4 {[%emt 0:00:06]} c5 {[%emt 0:00:07]} 3. e3 {[%emt 0:00:07]} Nc6 {[%emt 0:00:19]} 4. c3 {[%emt 0:00:07]} Nf6 {[%emt 1:01:57]} 5. Nd2 {[%emt 0:00:10]} Qb6 {[%emt 0:00:00]} 6. Qb3 {[%emt 0:00:06]} c4 {[%emt 0:00:00]} 7. Qc2 {[%emt 0:00:08]} g6 {[%emt 0:00:00]} 8. e4 {[%emt 0:00:04]} e6 {[%emt 0:00:00]} 9. Be2 {[%emt 0:06:46]} Qa5 {[%emt 0:00:00]} 10. e5 {[%emt 0:05:02]} Nd7 {[%emt 0:00:00]} 11. a3 {[%emt 0:03:14]} b5 {[%emt 0:00:00]} 12. Rb1 {[%emt 0:01:14]} Be7 {[%emt 0:00:00]} 13. h4 {[%emt 0:00:50]} Qd8 {[%emt 0:00:00]} 14. Ndf3 {[%emt 0:09:54]} a5 {[%emt 0:00:00]} 15. Qc1 {[%emt 0:01:33]} h5 {[%emt 0:00:00]} 16. Ng5 {[%emt 0:03:20]} b4 {[%emt 0:00:00]} 17. g4 {[%emt 0:02:13]} hxg4 {[%emt 0:00:00]} 18. Bxg4 {[%emt 0:00:38]} Nf8 {[%emt 0:00:00]} 19. h5 {[%emt 0:09:47]} f6 {[%emt 0:00:00]} 20. exf6 {[%emt 0:08:29]} Bxf6 {[%emt 0:00:00]} 21. Qe3 {[%emt 0:01:31]} Qe7 {[%emt 0:00:00]} 22. N1f3 {[%emt 0:00:38]} Bd7 {[%emt 0:00:00]} 23. h6 {[%emt 0:05:47]} e5 {[%emt 0:00:00]} 24. dxe5 {[%emt 0:00:45]} Bxg4 {[%emt 0:00:00]} 25. exf6 {[%emt 0:00:11]} Qxe3+ {[%emt 0:00:00]} 26. fxe3 {[%emt 0:00:41]} Bxf3 {[%emt 0:02:00]} 27. Nxf3 {[%emt 0:01:23]} Kf7 {[%emt 0:00:06]} 28. Rd1 {[%emt 0:00:49]} Rd8 {[%emt 0:02:27]} 29. axb4 {[%emt 0:00:13]} axb4 {[%emt 0:00:42]} 30. cxb4 {[%emt 0:00:02]} Nxb4 {[%emt 0:07:45]} 31. Ng5+ {[%emt 0:01:37]} Kxf6 {[%emt 0:00:00]} 32. Be5+ {[%emt 0:00:05]} Kxe5 {[%emt 0:00:00]} 33. Nf7+ {[%emt 0:00:02]} Ke4 {[%emt 0:00:29]} 34. Nxh8 {[%emt 0:03:14]} Nh7 {[%emt 0:00:45]} 35. Nxg6 {[%emt 0:00:45]} Kxe3 {[%emt 0:00:12]} 36. Rh3+ {[%emt 0:01:40]} Ke4 {[%emt 0:00:13]} 37. Kd2 {[%emt 0:01:32]} Nd3 {[%emt 0:01:51]} 38. Rf1 {[%emt 0:00:28]} Kd4 {[%emt 0:00:00]} 39. Rh4+ {[%emt 0:02:25]} Kc5 {[%emt 0:00:08]} 40. Rh5 {[%emt 0:01:31]} Rb8 {[%emt 0:00:37]} 41. Rf7 {[%emt 0:00:45]} Rxb2+ {[%emt 0:00:24]} 42. Ke3 {[%emt 0:00:01]} Rb6 {[%emt 0:00:19]} 43. Rxh7 {[%emt 0:00:43]} Rxg6 {[%emt 0:00:07]} 44. Rc7+ {[%emt 0:00:25]} Kd6 {[%emt 0:00:04]} 45. h7 {[%emt 0:01:04]} Re6+ {[%emt 0:01:15]} 46. Kd2 {[%emt 0:00:25]} Kxc7 {[%emt 0:01:36]} 47. h8=Q {[%emt 0:00:19]} Nf4 {[%emt 0:00:30]} 48. Rh7+ {[%emt 0:00:31]} Kd6 {[%emt 0:00:00]} 49. Qb8+ 1-0

[Event "2nd Namma Bengaluru Open-B 2025"]
[Site "Bengaluru"]
[Date "2025.04.13"]
[Round "9.8"]
[White "Singh Arjun M"]
[Black "Arush A"]
[Result "0-1"]
[Annotator "NA"]
[ECO "D00"]
[WhiteElo "1864"]
[BlackElo "1876"]
[PlyCount "104"]
[EventDate "2025.04.10"]
[EventType "swiss"]
[EventCountry "IND"]
[SourceTitle "playchess.com"]
[Source "ChessBase"]
[SourceQuality "1"]
[TimeControl "3600+30"]

1. d4 {[%emt 0:00:30]} d5 {[%emt 0:00:26]} 2. Nc3 {[%emt 0:00:06]} Nf6 {[%emt 0:00:21]} 3. Bf4 {[%emt 0:00:27]} e6 {[%emt 0:01:10]} 4. Nb5 {[%emt 0:00:54]} Na6 {[%emt 0:01:17]} 5. e3 {[%emt 0:00:07]} c6 {[%emt 0:02:01]} 6. Nc3 {[%emt 0:00:36]} Nc7 {[%emt 0:00:48]} 7. Nf3 {[%emt 0:00:25]} Bd6 {[%emt 0:01:47]} 8. Ne5 {[%emt 1:01:25]} O-O {[%emt 0:08:33]} 9. Bd3 {[%emt 0:00:00]} Nce8 {[%emt 0:09:24]} 10. Bg5 {[%emt 0:00:00]} Qc7 {[%emt 0:02:29]} 11. f4 {[%emt 0:00:00]} Nd7 {[%emt 0:02:59]} 12. Bh4 {[%emt 0:00:00]} f5 {[%emt 0:01:17]} 13. g4 {[%emt 0:00:00]} Ndf6 {[%emt 0:05:53]} 14. gxf5 {[%emt 0:00:00]} exf5 {[%emt 0:00:08]} 15. Bf2 {[%emt 0:00:00]} Ne4 {[%emt 0:06:37]} 16. Nxe4 {[%emt 0:00:00]} fxe4 {[%emt 0:00:07]} 17. Be2 {[%emt 0:00:00]} Qb6 {[%emt 0:01:29]} 18. Qc1 {[%emt 0:00:00]} c5 {[%emt 0:04:18]} 19. c3 {[%emt 0:00:00]} Be6 {[%emt 0:03:16]} 20. Qd2 {[%emt 0:00:00]} a5 {[%emt 0:02:56]} 21. O-O-O {[%emt 0:00:00]} cxd4 {[%emt 0:01:17]} 22. exd4 {[%emt 0:00:00]} Bxe5 {[%emt 0:00:06]} 23. fxe5 {[%emt 0:00:00]} Rxf2 {[%emt 0:00:08]} 24. Qe3 {[%emt 0:00:00]} Rf7 {[%emt 0:00:33]} 25. Bh5 {[%emt 0:00:00]} g6 {[%emt 0:02:33]} 26. Rhg1 {[%emt 0:00:00]} Bf5 {[%emt 0:00:42]} 27. Rdf1 {[%emt 0:00:00]} Ng7 {[%emt 0:00:27]} 28. Be2 {[%emt 0:00:00]} a4 {[%emt 0:03:02]} 29. a3 {[%emt 0:00:00]} Re8 {[%emt 0:00:54]} 30. Bd1 {[%emt 0:00:00]} Rxe5 {[%emt 0:00:29]} 31. Bxa4 {[%emt 0:00:00]} Ree7 {[%emt 0:00:21]} 32. h4 {[%emt 0:00:00]} Bd7 {[%emt 0:01:46]} 33. Bc2 {[%emt 0:00:00]} Rxf1+ {[%emt 0:00:12]} 34. Rxf1 {[%emt 0:00:00]} Rf7 {[%emt 0:00:21]} 35. Rxf7 {[%emt 0:00:00]} Kxf7 {[%emt 0:00:03]} 36. Qg5 {[%emt 0:00:00]} Bf5 {[%emt 0:00:20]} 37. Qf4 {[%emt 0:00:00]} Qe6 {[%emt 0:00:52]} 38. Bb3 {[%emt 0:00:00]} Ne8 {[%emt 0:00:51]} 39. Kd2 {[%emt 0:00:00]} Qd7 {[%emt 0:01:40]} 40. a4 {[%emt 0:00:00]} Nf6 {[%emt 0:00:13]} 41. Qe5 {[%emt 0:00:00]} Qc6 {[%emt 0:01:44]} 42. h5 {[%emt 0:00:00]} Qe6 {[%emt 0:00:33]} 43. h6 {[%emt 0:00:00]} g5 {[%emt 0:01:05]} 44. Qc7+ {[%emt 0:00:00]} Kg6 {[%emt 0:00:22]} 45. Qg7+ {[%emt 0:00:00]} Kh5 {[%emt 0:00:04]} 46. Bd1+ {[%emt 0:00:00]} Bg4 {[%emt 0:00:08]} 47. Bxg4+ {[%emt 0:00:00]} Kxg4 {[%emt 0:00:02]} 48. a5 {[%emt 0:00:00]} Qa6 {[%emt 0:01:52]} 49. c4 {[%emt 0:00:00]} Qxa5+ {[%emt 0:00:10]} 50. Ke2 {[%emt 0:00:00]} Qa6 {[%emt 0:00:06]} 51. Kf2 {[%emt 0:00:00]} Qb6 {[%emt 0:00:07]} 52. Kf1 {[%emt 0:00:00]} Qxd4 {[%emt 0:00:16]} 0-1